bitfinex/quotes_SOLUSD_20260214
["timestamp","ask_amount","ask_price","bid_price","bid_amount"]
[1771103822229,0.5,88.307,88.29,2.87725631]
[1771103822524,0.5,88.307,88.281,11.3274657]
[1771103822525,28.30348381,88.329,88.257,50.6]
[1771103822526,0.5,88.324,88.3,2.87725631]
[1771103822731,0.5,88.339,88.31,2.87725631]
[1771103823029,0.6,88.36,88.33,2.87265951]
[1771103823325,5.36086188,88.348,88.31,2.87265951]
[1771103823531,0.5,88.347,88.31,2.87265951]
[1771103824015,0.5,88.356,88.33,2.87265951]
[1771103824205,0.5,88.356,88.32,2.87265951]
[1771103824929,0.5,88.346,88.31,2.87265951]
[1771103826017,0.5,88.346,88.3,2.87265951]
[1771103826210,0.5,88.346,88.31,2.87265951]
[1771103828033,0.5,88.344,88.31,2.87265951]
[1771103828413,0.5,88.344,88.311,11.32361766]
[1771103828833,5.36086188,88.339,88.3,2.87265951]
[1771103829020,0.5,88.329,88.29,2.87265951]
[1771103830733,0.5,88.326,88.291,11.32618273]
[1771103832535,0.5,88.326,88.29,2.87265951]
[1771103832744,0.5,88.319,88.281,11.3274657]
[1771103832942,0.5,88.319,88.29,2.87265951]
[1771103833140,2.87265944,88.379,88.31,2.87265951]
[1771103833141,0.5,88.337,88.31,2.87265951]
[1771103833332,58.22,88.348,88.32,2.87265951]
[1771103833333,0.5,88.346,88.32,2.87265951]
[1771103834950,0.5,88.346,88.321,11.32233557]
[1771103835620,0.5,88.355,88.321,11.32233557]
[1771103835836,0.1,88.36,88.33,2.87265951]
[1771103837341,0.1,88.36,88.34,2.87265951]
[1771103837934,0.1,88.36,88.331,39.62368816]
[1771103838328,0.5,88.359,88.331,11.32105376]
[1771103838937,0.5,88.359,88.33,2.87265951]
[1771103839445,0.5,88.357,88.324,11.32189342]
[1771103839646,0.5,88.357,88.31,2.87265951]
[1771103840744,2.87265951,88.35,88.31,2.87265951]
[1771103840944,0.5,88.349,88.31,2.87265951]
[1771103841759,0.5,88.345,88.311,11.32361766]
[1771103842054,5.36086188,88.346,88.299,50.44]
[1771103842055,0.5,88.339,88.305,11.32436119]
[1771103843028,0.5,88.335,88.299,11.32514439]
[1771103843339,0.5,88.329,88.299,11.32514439]
[1771103843830,0.5,88.325,88.291,11.32618273]
[1771103844845,0.5,88.323,88.285,11.32695248]
[1771103846130,0.5,88.323,88.29,7.18900224]
[1771103846947,0.5,88.323,88.291,11.32618273]
[1771103847735,0.5,88.323,88.3,7.18900224]
[1771103848031,0.5,88.319,88.286,11.32674879]
[1771103848953,0.5,88.317,88.286,11.32674879]
[1771103850035,0.5,88.317,88.29,7.18900224]
[1771103850237,0.5,88.324,88.29,7.18900224]
[1771103851251,11.32136405,88.329,88.284,50.46]
[1771103851252,7.18900224,88.32,88.284,50.46]
[1771103851436,0.5,88.309,88.273,11.3284247]
[1771103851638,0.5,88.309,88.28,7.18900224]
[1771103851828,0.5,88.309,88.273,11.3284247]
[1771103852636,0.5,88.309,88.28,7.18900224]
[1771103853038,0.5,88.307,88.273,11.3284247]
[1771103853245,0.5,88.307,88.28,7.18900224]
[1771103853853,0.5,88.307,88.273,11.3284247]
[1771103854258,0.5,88.307,88.28,7.18900224]
[1771103856650,0.5,88.307,88.273,11.3284247]
[1771103856960,0.5,88.307,88.281,11.3274657]
[1771103857960,0.5,88.305,88.275,11.32814972]
[1771103859043,35.49542046,88.32,88.271,11.32874896]
[1771103859044,0.5,88.303,88.271,11.32874896]
[1771103860063,0.5,88.301,88.271,11.32874896]
[1771103864461,0.5,88.299,88.267,11.32926235]
[1771103869371,0.5,88.299,88.268,50.64]
[1771103870076,0.5,88.299,88.261,39.65509183]
[1771103870280,0.5,88.299,88.262,50.64]
[1771103870752,0.5,88.297,88.261,39.65509183]
[1771103870946,0.5,88.297,88.262,50.66]
[1771103872171,0.5,88.297,88.261,39.65509183]
[1771103872381,0.5,88.297,88.263,50.66]
[1771103874575,0.5,88.297,88.264,11.32964742]
[1771103875477,0.5,88.297,88.265,50.7]
[1771103876667,0.5,88.297,88.264,11.32964742]
[1771103876859,0.5,88.297,88.265,50.7]
[1771103877477,0.5,88.297,88.266,50.72]
[1771103877981,0.5,88.295,88.266,50.72]
[1771103878473,0.5,88.295,88.264,11.32964742]
[1771103879376,0.5,88.295,88.265,50.74]
[1771103880683,0.5,88.31,88.28,2.8767724]
[1771103882174,0.5,88.31,88.281,11.3274657]
[1771103882381,0.5,88.308,88.281,11.3274657]
[1771103885586,11.32413058,88.307,88.281,11.3274657]
[1771103885794,0.5,88.306,88.281,11.3274657]
[1771103886490,0.5,88.295,88.271,50.8]
[1771103886691,0.45820018,88.289,88.255,50.8]
[1771103887091,0.45820018,88.289,88.256,11.3306744]
[1771103887288,0.45820018,88.287,88.256,11.3306744]
[1771103887491,0.45820018,88.287,88.256,11.78152554]
[1771103887684,0.45820018,88.287,88.257,0.45085114]
[1771103888895,0.45820018,88.287,88.261,0.45085114]
[1771103889197,0.45820018,88.287,88.263,0.45085114]
[1771103890488,0.45820018,88.287,88.264,11.32964742]
[1771103890995,30.0,88.282,88.264,11.32964742]
[1771103891493,0.45820018,88.281,88.26,11.33015053]
[1771103891999,30.0,88.27,88.26,11.33015053]
[1771103893994,0.45820018,88.276,88.26,11.33015053]
[1771103894174,0.46726606,88.289,88.261,0.47010215]
[1771103894379,0.46726606,88.298,88.271,0.47010215]
[1771103895501,0.46726606,88.298,88.273,0.47010215]
[1771103896189,30.0,88.28,88.273,0.47010215]
[1771103896583,0.46726606,88.298,88.273,0.47010215]
[1771103897280,0.46726606,88.297,88.268,50.92]
[1771103897702,0.46726606,88.297,88.267,11.32926235]
[1771103897703,0.46726606,88.314,88.281,0.47010215]
[1771103898389,0.46726606,88.314,88.275,51.43010215]
[1771103898601,0.46726606,88.314,88.276,0.47010215]
[1771103899299,0.46726606,88.312,88.281,0.47010215]
[1771103901305,0.46726606,88.31,88.282,11.32733739]
[1771103902406,0.46726606,88.309,88.277,11.32791563]
[1771103904511,0.46726606,88.307,88.273,11.32849229]
[1771103904713,0.46726606,88.307,88.277,101.0]
[1771103904911,5.36086188,88.298,88.277,101.0]
[1771103905119,0.46726606,88.295,88.277,101.0]
[1771103906509,3.0,115.5,88.277,101.0]
[1771103906510,0.46726606,88.307,88.28,0.47010215]
[1771103907807,0.46726606,88.313,88.281,0.47010215]
[1771103908512,0.46726606,88.311,88.281,0.47010215]
[1771103908716,0.46726606,88.311,88.283,0.47010215]
[1771103910300,0.46726606,88.321,88.291,0.47010215]
[1771103910503,0.46726606,88.325,88.291,0.47010215]
[1771103910805,0.46726606,88.323,88.293,0.47010215]
[1771103911520,0.46726606,88.329,88.301,0.47010215]
[1771103913797,0.46726606,88.329,88.302,11.3247718]
[1771103913999,0.46726606,88.327,88.302,11.3247718]
[1771103914199,0.46726606,88.327,88.297,11.32534823]
[1771103914401,0.46726606,88.325,88.294,62.70578775]
[1771103915223,0.46726606,88.325,88.294,51.38]
[1771103915600,0.46726606,88.325,88.294,62.70573726]
[1771103916112,0.46726606,88.323,88.29,11.79641317]
[1771103916812,0.46726606,88.319,88.29,11.32631102]
[1771103917423,0.46726606,88.318,88.29,11.32631102]
[1771103918197,0.46726606,88.316,88.287,51.44]
[1771103918523,0.46726606,88.316,88.288,11.79666974]
[1771103919203,30.0,88.302,88.288,0.47010215]
[1771103920928,30.48439893,88.302,88.287,51.44]
[1771103921111,30.48439893,88.302,88.288,101.0]
[1771103922934,0.48439893,88.301,88.288,101.0]
[1771103923227,30.48720444,88.299,88.288,101.0]
[1771103923427,0.48720444,88.298,88.263,0.5]
[1771103923628,0.48720444,88.298,88.25,2.87602504]
[1771103923629,2.87602504,88.29,88.256,0.5]
[1771103924425,2.87602504,88.28,88.256,0.5]
[1771103924647,14.20373834,88.28,88.256,0.5]
[1771103925033,11.32689723,88.286,88.258,0.5]
[1771103925341,30.0,88.288,88.258,0.5]
[1771103925545,30.0,88.279,88.261,0.5]
[1771103925844,2.87602504,88.3,88.262,0.49991217]
[1771103926219,0.48720444,88.279,88.251,52.15991217]
[1771103926421,0.48720444,88.279,88.244,0.49991217]
[1771103926645,0.48720444,88.277,88.244,0.49991217]
[1771103927230,0.48720444,88.277,88.246,0.49991217]
[1771103927843,2.87602504,88.27,88.246,0.49991217]
[1771103928425,0.48720444,88.269,88.246,0.49991217]
[1771103928630,0.48720444,88.267,88.238,0.49991217]
[1771103928824,0.48720444,88.267,88.239,11.33285735]
[1771103929828,0.48720444,88.267,88.222,28.33742522]
[1771103929829,0.48720444,88.267,88.23,0.49991217]
[1771103930135,0.48720444,88.259,88.23,0.49991217]
[1771103930648,11.81749945,88.259,88.231,11.33388491]
[1771103930849,0.48720444,88.258,88.232,0.49991217]
[1771103932746,0.48720444,88.256,88.232,0.49991217]
[1771103933049,0.48720444,88.256,88.226,11.83432578]
[1771103933250,0.48720444,88.256,88.227,0.49991217]
[1771103933727,0.48720444,88.256,88.221,11.33505322]
[1771103933927,0.48720444,88.239,88.211,11.33645463]
[1771103934552,0.48720444,88.248,88.211,11.33645463]
[1771103934748,11.33182997,88.247,88.211,11.33645463]
[1771103935039,30.0,88.257,88.22,2.87602504]
[1771103935854,30.0,88.257,88.221,0.49991217]
[1771103937161,30.0,88.257,88.231,0.49991217]
[1771103938839,0.48720444,88.267,88.236,0.49991217]
[1771103939567,0.48720444,88.267,88.237,11.33311422]
[1771103939734,0.48720444,88.267,88.237,11.83302639]
[1771103940743,2.87602504,88.28,88.24,2.87602504]
[1771103941054,2.87602504,88.28,88.237,11.33311422]
[1771103941055,0.81300002,88.282,88.251,0.49991217]
[1771103941252,0.81300002,88.282,88.261,0.49991217]
[1771103941457,0.48720444,88.281,88.261,0.49991217]
[1771103941642,0.81300002,88.282,88.263,0.49991217]
[1771103941832,2.87602504,88.3,88.263,0.49991217]
[1771103941833,11.81163513,88.305,88.263,0.49991217]
[1771103942037,0.48720444,88.31,88.281,0.49991217]
[1771103942995,11.32308655,88.316,88.281,0.49991217]
[1771103943160,0.48720444,88.315,88.281,0.49991217]
[1771103943762,0.48720444,88.313,88.283,0.49991217]
[1771103944940,0.48720444,88.313,88.276,11.8279711]
[1771103945145,0.48720444,88.313,88.277,0.49991217]
[1771103945659,57.74,88.318,88.27,0.49991217]
[1771103945660,0.48720444,88.309,88.27,0.49991217]
[1771103945853,0.48720444,88.309,88.271,11.32874896]
[1771103946045,0.48720444,88.309,88.272,0.49991217]
[1771103946934,0.48720444,88.307,88.274,0.49991217]
[1771103947135,11.32327551,88.314,88.281,0.49991217]
[1771103947351,0.48720444,88.313,88.281,0.49991217]
[1771103947752,0.48720444,88.313,88.274,0.49991217]
[1771103948267,0.48720444,88.309,88.274,0.49991217]
[1771103949475,0.48720444,88.307,88.274,0.49991217]
[1771103949660,0.48720444,88.307,88.276,0.49991217]
[1771103950962,0.48720444,88.307,88.281,0.49991217]
[1771103951165,11.32400235,88.308,88.281,0.49991217]
[1771103952857,0.49848808,88.312,88.281,0.49991217]
[1771103953641,0.49848808,88.31,88.28,0.48393032]
[1771103957851,0.49848808,88.308,88.28,2.87622191]
[1771103958170,11.82166098,88.315,88.282,0.48393032]
[1771103959164,57.76,88.316,88.291,0.48393032]
[1771103960161,11.32261133,88.319,88.291,0.48393032]
[1771103961950,11.32261133,88.319,88.293,0.48393032]
[1771103963664,0.49848808,88.319,88.293,0.48393032]
[1771103964558,11.32116954,88.319,88.293,0.48393032]
[1771103965859,39.62764945,88.319,88.285,0.48393032]
[1771103966266,28.30327953,88.329,88.291,0.48393032]
[1771103966473,11.32143827,88.328,88.301,0.48393032]
[1771103967180,11.32143827,88.328,88.303,0.48393032]
[1771103967471,58.02,88.331,88.303,0.48393032]
[1771103968077,11.32086175,88.333,88.303,0.48393032]
[1771103968479,0.49848808,88.337,88.303,0.48393032]
[1771103968975,0.49848808,88.337,88.273,51.56]
[1771103968976,0.49848808,88.329,88.296,0.48393032]
[1771103971179,11.32143827,88.328,88.297,11.32541309]
[1771103971378,11.32143827,88.328,88.298,0.48393032]
[1771103972381,11.81992635,88.328,88.298,0.48393032]
[1771103972577,0.49848808,88.327,88.298,0.48393032]
[1771103973379,0.49848808,88.327,88.297,11.32541309]
[1771103973380,0.49848808,88.325,88.297,11.32541309]
[1771103974685,0.49848808,88.319,88.28,2.87622191]
[1771103974882,0.49848808,88.319,88.273,11.32849229]
[1771103974883,0.49848808,88.319,88.273,39.64972301]
[1771103975582,0.49848808,88.317,88.276,0.48393032]
[1771103977586,0.49848808,88.315,88.278,0.48393032]
[1771103977802,11.32297658,88.316,88.272,52.00393032]
[1771103977803,0.49848808,88.309,88.272,52.00393032]
[1771103978087,0.49848808,88.309,88.273,0.48393032]
[1771103979689,0.49848808,88.307,88.273,0.48393032]
[1771103980080,11.81297617,88.313,88.281,0.45995776]
[1771103980282,58.26,88.311,88.281,0.45995776]
[1771103982494,0.4895437,88.309,88.271,0.45995776]
[1771103983575,0.4895437,88.309,88.266,11.82686434]
[1771103983883,0.47444957,88.307,88.267,0.49750911]
[1771103985792,0.47444957,88.299,88.26,14.20637173]
[1771103985976,0.47444957,88.279,88.249,0.49750911]
[1771103986176,0.47444957,88.279,88.241,28.3313413]
[1771103986177,30.0,88.275,88.251,0.49750911]
[1771103986382,0.4926772,88.302,88.26,2.87622191]
[1771103986900,0.4926772,88.302,88.27,2.87622191]
[1771103988499,0.4926772,88.3,88.27,14.20509921]
[1771103988806,0.4926772,88.3,88.27,11.3288773]
[1771103991196,11.81783377,88.299,88.27,2.87622191]
[1771103991392,0.4926772,88.298,88.27,2.87622191]
[1771103991588,0.4926772,88.298,88.26,2.87622191]
[1771103993081,0.4926772,88.298,88.27,2.87622191]
[1771103994310,0.4926772,88.298,88.271,11.32874896]
[1771103995302,0.4926772,88.296,88.271,11.32874896]
[1771103996605,0.4926772,88.296,88.26,2.87622191]
[1771103997705,28.30732226,88.317,88.27,2.87622191]
[1771103997907,11.32054112,88.335,88.3,2.87622191]
[1771103998083,0.4926772,88.339,88.32,2.87622191]
[1771103998408,2.97622191,88.36,88.32,2.87622191]
[1771103998409,0.4926772,88.34,88.32,2.87622191]
[1771103998899,0.4926772,88.34,88.31,2.87622191]
[1771103999805,0.4926772,88.34,88.311,11.32361766]
[1771104000004,0.4926772,88.338,88.31,2.87622191]
[1771104000207,0.4926772,88.346,88.32,2.87622191]
[1771104000396,0.4926772,88.339,88.295,11.32566963]
[1771104000707,0.4926772,88.329,88.287,11.3265777]
[1771104000914,0.4926772,88.319,88.281,11.32734732]
[1771104001407,54.94086188,88.338,88.27,2.87622191]
[1771104001408,0.4926772,88.309,88.27,2.87622191]
[1771104001608,0.4926772,88.309,88.258,51.1]
[1771104001609,0.4926772,88.299,88.258,51.1]
[1771104001801,0.4926772,88.289,88.258,51.1]
[1771104001995,2.87622191,88.29,88.251,11.33131635]
[1771104001996,0.4926772,88.287,88.251,11.33131635]
[1771104003108,0.4926772,88.287,88.26,2.87622191]
[1771104003291,0.4926772,88.309,88.28,2.87622191]
[1771104003795,0.4926772,88.309,88.27,2.87622191]
[1771104004900,0.4926772,88.309,88.235,4.61729252]
[1771104004901,0.4926772,88.299,88.26,2.8767895]
[1771104005103,0.4926772,88.297,88.251,11.33131635]
[1771104005402,0.4926772,88.289,88.251,11.33131635]
[1771104005709,0.4926772,88.289,88.251,39.65960724]
[1771104005906,0.4926772,88.297,88.26,2.8767895]
[1771104006492,0.4926772,88.297,88.251,11.33131635]
[1771104006811,0.4926772,88.297,88.26,2.8767895]
[1771104007390,0.4926772,88.295,88.26,2.8767895]
[1771104007617,0.4926772,88.295,88.261,11.33003251]
[1771104008496,2.8767895,88.29,88.25,2.8767895]
[1771104008699,5.36086188,88.285,88.24,2.8767895]
[1771104008902,0.4926772,88.279,88.24,2.8767895]
[1771104009116,0.4926772,88.279,88.238,11.33290051]
[1771104009595,0.4926772,88.277,88.24,2.8767895]
[1771104010611,0.4926772,88.269,88.231,11.33388491]
[1771104011018,0.4926772,88.269,88.24,2.8767895]
[1771104011513,11.82173443,88.269,88.231,39.66859719]
[1771104011723,30.0,88.26,88.24,2.8767895]
[1771104012221,30.0,88.26,88.231,11.33388491]
[1771104012423,0.4926772,88.259,88.231,11.33388491]
[1771104012820,30.0,88.253,88.231,11.33388491]
[1771104013825,30.0,88.253,88.24,2.8767895]
[1771104015828,30.0,88.253,88.241,11.33260049]
[1771104018718,0.4926772,88.268,88.241,11.33260049]
[1771104020602,11.32845245,88.274,88.241,11.33260049]
[1771104020808,0.4926772,88.273,88.241,11.33260049]
[1771104021026,0.4926772,88.273,88.241,39.66410171]
[1771104021217,0.4926772,88.273,88.242,0.04585056]
[1771104021813,0.4926772,88.273,88.25,2.8767895]
[1771104022215,0.4926772,88.273,88.242,0.04585056]
[1771104023912,0.4926772,88.273,88.241,11.33260049]
[1771104027018,0.4926772,88.273,88.241,11.37455625]
[1771104029022,0.4926772,88.273,88.242,0.04032149]
[1771104031516,0.4926772,88.273,88.25,2.8767895]
[1771104031722,0.4926772,88.279,88.251,0.03779267]
[1771104032733,0.4926772,88.278,88.251,0.03779267]
[1771104033124,5.36086188,88.299,88.25,2.8767895]
[1771104033125,0.4926772,88.315,88.271,0.03692976]
[1771104033438,0.4926772,88.322,88.3,2.8767895]
[1771104033635,0.4926772,88.315,88.29,2.8767895]
[1771104033833,0.4926772,88.315,88.273,39.64972301]
[1771104033834,0.4926772,88.315,88.3,2.8767895]
[1771104035927,0.4926772,88.315,88.301,11.32490005]
[1771104037028,0.4926772,88.335,88.302,0.03338268]
[1771104037236,0.4926772,88.335,88.31,2.8767895]
[1771104037428,0.4926772,88.335,88.32,2.8767895]
[1771104038338,0.4926772,88.335,88.308,11.32399181]
[1771104038539,0.4926772,88.335,88.31,2.8767895]
[1771104041447,0.47049015,88.334,88.31,2.8767895]
[1771104041644,0.47049015,88.334,88.3,14.2018074]
[1771104042327,2.8767895,88.33,88.29,2.8767895]
[1771104042630,44.9836529,88.333,88.244,56.66066184]
[1771104042631,0.47049015,88.317,88.28,2.8767895]
[1771104045344,0.47307322,88.315,88.278,11.32772643]
[1771104045644,0.47307322,88.309,88.271,11.32867037]
[1771104045838,0.47307322,88.309,88.271,11.81274931]
[1771104046041,0.47307322,88.309,88.281,0.48407894]
[1771104046438,11.79503355,88.316,88.281,0.48407894]
[1771104046635,12.77,88.318,88.301,0.48407894]
[1771104047555,12.77,88.318,88.302,0.48407894]
[1771104048149,11.32012108,88.339,88.311,0.48407894]
[1771104049251,0.47000276,88.345,88.311,0.48407894]
[1771104049452,11.31913159,88.346,88.321,0.48407894]
[1771104049832,0.48499517,88.345,88.31,2.8767895]
[1771104050532,0.48499517,88.345,88.31,14.2004149]
[1771104050738,0.48499517,88.345,88.311,0.48407894]
[1771104052735,0.48172017,88.343,88.311,0.48407894]
[1771104053846,0.48061557,88.341,88.311,0.48407894]
[1771104056857,0.47726466,88.339,88.303,0.48407894]
[1771104057058,42.49644084,88.34,88.29,11.32627211]
[1771104057059,0.47726466,88.329,88.29,11.32627211]
[1771104057637,0.47726466,88.329,88.291,0.48407894]
[1771104058960,0.47500099,88.327,88.291,0.48407894]
[1771104060473,0.47500099,88.327,88.292,11.32605445]
[1771104060660,0.47500099,88.327,88.293,0.48407894]
[1771104060867,11.32087612,88.333,88.311,0.48407894]
[1771104061545,0.47156321,88.339,88.311,0.48407894]
[1771104061746,0.47156321,88.339,88.301,0.48407894]
[1771104062467,57.86,88.344,88.311,0.48407894]
[1771104062643,11.31951597,88.343,88.311,0.48407894]
[1771104062847,57.86,88.344,88.311,0.48407894]
[1771104063119,0.1,88.36,88.331,0.48407894]
[1771104063120,11.31746624,88.359,88.331,0.48407894]
[1771104063363,0.47040647,88.358,88.321,0.48407894]
[1771104063544,0.47040647,88.358,88.323,0.48407894]
[1771104063749,0.1,88.36,88.331,0.48407894]
[1771104064161,11.31746624,88.359,88.331,0.48407894]
[1771104064944,11.78554364,88.359,88.331,0.48407894]
[1771104065363,0.46690529,88.358,88.331,0.48407894]
[1771104068682,0.46335994,88.356,88.331,0.48407894]
[1771104068871,0.46335994,88.349,88.317,0.48407894]
[1771104070181,0.46216881,88.347,88.318,0.48407894]
[1771104071079,0.46216881,88.347,88.312,11.3233787]
[1771104071482,0.46216881,88.347,88.313,0.48407894]
[1771104072979,0.46216881,88.347,88.315,0.45438071]
[1771104073477,0.45861352,88.345,88.315,0.45438071]
[1771104073682,0.45861352,88.338,88.308,0.45438071]
[1771104074681,39.61696058,88.346,88.31,2.87281075]
[1771104074980,39.61696058,88.346,88.279,0.45438071]
[1771104074981,0.45861352,88.317,88.279,0.45438071]
[1771104075181,0.45861352,88.309,88.279,0.45438071]
[1771104076085,2.87281075,88.3,88.279,0.45438071]
[1771104076677,2.87281075,88.3,88.281,0.45438071]
[1771104077884,0.45861352,88.298,88.261,0.45438071]
[1771104078107,3.33142427,88.29,88.261,0.45438071]
[1771104078298,2.87281075,88.27,88.247,0.45438071]
[1771104078478,0.45861352,88.268,88.238,0.45438071]
[1771104078798,11.32900565,88.269,88.2,0.2]
[1771104078799,0.45861352,88.259,88.227,0.45438071]
[1771104079182,11.32900565,88.269,88.227,0.45438071]
[1771104080372,11.32900565,88.269,88.229,0.45438071]
[1771104082497,0.45905944,88.268,88.231,0.45438071]
[1771104082790,2.87281075,88.26,88.225,0.45438071]
[1771104085577,2.87281075,88.26,88.227,0.45438071]
[1771104085984,11.33028926,88.259,88.227,0.45438071]
[1771104087479,11.78890278,88.259,88.227,0.45438071]
[1771104087982,0.45861352,88.258,88.227,0.45438071]
[1771104089089,0.45861352,88.258,88.214,50.38]
[1771104089090,3.33142427,88.24,88.214,50.83438071]
[1771104089270,3.33142427,88.24,88.215,0.45438071]
[1771104089672,0.45861352,88.248,88.215,0.45438071]
[1771104089873,0.45861352,88.259,88.216,0.45438071]
[1771104091493,0.45861352,88.259,88.217,11.33568359]
[1771104091793,0.45861352,88.259,88.218,0.45438071]
[1771104092002,0.45861352,88.259,88.221,0.45438071]
[1771104092580,11.33041763,88.258,88.221,0.45438071]
[1771104093382,11.78903115,88.258,88.221,0.45438071]
[1771104093582,11.3306744,88.256,88.221,0.45438071]
[1771104093981,0.45861352,88.255,88.221,0.45438071]
[1771104094584,0.45861352,88.255,88.222,0.45438071]
[1771104097999,11.33093117,88.254,88.222,0.45438071]
[1771104098313,11.78954469,88.254,88.222,0.45438071]
[1771104098602,0.45861352,88.253,88.222,0.45438071]
[1771104100003,0.45861352,88.249,88.202,0.45441769]
[1771104100299,0.45861352,88.238,88.202,0.45441769]
[1771104101200,0.45861352,88.233,88.202,0.45441769]
[1771104101401,5.36086188,88.239,88.202,0.45441769]
[1771104101606,5.8194754,88.239,88.202,0.45441769]
[1771104101906,0.45861352,88.238,88.202,0.45441769]
[1771104102512,11.33311422,88.237,88.202,0.45441769]
[1771104103308,11.79172774,88.237,88.202,0.45441769]
[1771104103805,11.33311422,88.237,88.204,0.48197893]
[1771104104707,11.33157316,88.249,88.211,0.48197893]
[1771104104914,0.45861352,88.248,88.211,0.48197893]
[1771104105707,0.45861352,88.246,88.211,0.48197893]
[1771104107510,11.3320868,88.245,88.211,0.48197893]
[1771104108297,0.45861352,88.244,88.211,0.48197893]
[1771104109610,2.87281075,88.22,88.2,0.2]
[1771104109915,0.45861352,88.209,88.179,0.48197893]
[1771104111012,0.45861352,88.209,88.182,11.34013064]
[1771104111189,0.45861352,88.209,88.186,8.9476867]
[1771104111387,0.45861352,88.216,88.19,0.68197893]
[1771104111591,0.45861352,88.216,88.191,0.48197893]
[1771104111816,11.33594059,88.215,88.191,0.48197893]
[1771104112707,11.33594059,88.215,88.19,0.2]
[1771104112708,11.3353977,88.22,88.193,0.48197893]
[1771104114011,0.45861352,88.219,88.193,0.48197893]
[1771104114312,0.45861352,88.236,88.201,0.48197893]
[1771104116518,0.45861352,88.234,88.201,0.48197893]
[1771104116706,0.45861352,88.234,88.203,0.48197893]
[1771104117914,28.33278556,88.237,88.205,0.48197893]
[1771104118515,0.45861352,88.236,88.205,0.48197893]
[1771104120215,0.45861352,88.234,88.198,0.48197893]
[1771104120418,0.45861352,88.219,88.191,0.48197893]
[1771104121322,0.45861352,88.219,88.19,0.2]
[1771104122406,0.45861352,88.217,88.19,0.2]
[1771104122833,0.45861352,88.209,88.186,5.3056975]
[1771104123144,2.87281075,88.2,88.168,0.48197893]
[1771104123624,2.87281075,88.2,88.161,0.5]
[1771104124521,39.68298959,88.199,88.161,0.5]
[1771104126600,2.88411098,88.19,88.161,0.5]
[1771104127411,2.88411098,88.19,88.16,0.2]
[1771104128217,2.88411098,88.19,88.161,0.5]
[1771104128415,2.88411098,88.18,88.16,0.2]
[1771104128629,0.47569375,88.169,88.14,0.2]
[1771104129110,0.47569375,88.169,88.141,11.34545784]
[1771104129625,0.47569375,88.176,88.141,11.34545784]
[1771104130128,0.47569375,88.176,88.14,0.2]
[1771104130309,0.47569375,88.176,88.14,11.54548817]
[1771104130516,0.47569375,88.174,88.141,0.48197893]
[1771104131112,11.34050902,88.18,88.151,0.48197893]
[1771104134011,11.80333323,88.193,88.161,0.45660988]
[1771104134328,5.36086188,88.191,88.161,0.45660988]
[1771104134715,0.46456485,88.208,88.171,0.45660988]
[1771104135605,0.46456485,88.204,88.164,0.45660988]
[1771104135928,0.46456485,88.179,88.143,0.45660988]
[1771104136220,3.34867583,88.17,88.145,0.45660988]
[1771104136426,0.46456485,88.169,88.145,0.45660988]
[1771104137522,11.34198348,88.168,88.145,0.45660988]
[1771104137719,11.34142461,88.173,88.145,0.45660988]
[1771104138029,11.34142461,88.173,88.151,0.45660988]
[1771104139840,0.46456485,88.178,88.141,0.45660988]
[1771104140132,0.46456485,88.169,88.141,0.45660988]
[1771104141837,58.1,88.177,88.14,0.2]
[1771104141838,0.46456485,88.159,88.14,0.2]
[1771104143826,0.46456485,88.157,88.14,0.2]
[1771104144836,0.46456485,88.157,88.123,0.45660988]
[1771104145019,0.3,88.149,88.123,0.45660988]
[1771104145338,11.34327003,88.158,88.125,0.45660988]
[1771104145937,0.3,88.166,88.125,0.45660988]
[1771104146234,0.3,88.166,88.12,3.08411098]
[1771104146235,0.3,88.166,88.127,0.45660988]
[1771104146439,0.3,88.159,88.127,0.45660988]
[1771104147724,0.3,88.149,88.12,0.65660988]
[1771104148034,0.3,88.147,88.12,0.65660988]
[1771104148529,0.3,88.147,88.11,0.2]
[1771104148530,0.3,88.139,88.11,0.2]
[1771104149522,0.46456485,88.119,88.1,0.2]
[1771104149940,0.46456485,88.109,88.07,2.88411098]
[1771104150139,11.34880553,88.115,88.08,2.88411098]
[1771104150328,11.34880553,88.115,88.081,0.45660988]
[1771104151237,0.46456485,88.109,88.081,0.45660988]
[1771104151431,0.46456485,88.099,88.062,0.45660988]
[1771104151632,0.46456485,88.089,88.062,0.45660988]
[1771104152045,0.46456485,88.096,88.062,0.45660988]
[1771104152248,0.46456485,88.139,88.099,0.45660988]
[1771104152430,0.46456485,88.139,88.101,0.45660988]
[1771104152630,0.46456485,88.129,88.092,0.45660988]
[1771104152825,0.46456485,88.119,88.082,0.45660988]
[1771104153548,0.46456485,88.089,88.06,0.2]